[Event "FIDE Women Candidates 2026"]
[White "Assaubayeva,Bibisara"]
[Black "Goryachkina,Aleksandra"]
[Site "Agios Georgios Pegeia"]
[Round "2.4"]
[Annotator "TA"]
[Result "1/2-1/2"]
[Date "2026.03.30"]
[WhiteElo "2516"]
[BlackElo "2534"]
[PlyCount "80"]
[TimeControl "60"]

{[%evp 13,80,16,17,12,7,12,12,12,11,5,23,6,6,4,16,14,12,12,12,18,10,17,29,15,8,13,3,8,10,10,10,8,9,6,7,0,0,0,0,0,0,0,0,0,0,0,12,0,0,0,0,0,0,0,0,0,0,0,0,0,0,0,0,0,0,0,0,0,0]} 1. d4 {[%emt 0:0:21]} Nf6 {[%emt 0:0:15]} 2. c4 {[%emt 0:0:7]} e6 {[%emt 0:0:5]} 3. Nf3 {[%emt 0:0:4]} d5 {[%emt 0:0:8]} 4. Nc3 {[%emt 0:0:5]} c5 {[%emt 0:0:28]} 5. cxd5 {[%emt 0:0:17]} cxd4 {[%emt 0:0:6]} 6. Qa4+ {[%emt 0:1:14]} Bd7 {[%emt 0:0:17]} 7. Qxd4 {[%emt 0:0:7]} exd5 {[%emt 0:0:10]} 8. Nxd5 {[%emt 0:0:5] D41: Queen's Gambit Declined: Semi-Tarrasch with 5 cxd5.} Qa5+ {[%emt 0:0:19]} 9. Nc3 {[%emt 0:0:6]} Nc6 {[%emt 0:0:12] Prevents Qe5+} 10. Qd1 {[%emt 0:0:25]} Ne4 {[%emt 0:1:9] Black sacrificed a pawn} 11. Bd2 {[%emt 0:0:14]} Nxd2 {[%emt 0:0:20]} 12. Nxd2 {[%emt 0:0:13][%cal Bf3d2,Bd2c4,Bc4d6][%mdl 32]} Bb4 {[%emt 0:0:20]} 13. Rc1 {[%emt 0:0:6]} Bxc3 {[%emt 0:0:37]} 14. Rxc3 {[%emt 0:0:6]} Qxa2 {[%emt 0:0:26]} 15. Nc4 {[%emt 0:0:7]} Be6 {[%emt 0:0:48]} 16. e4 {[%emt 0:0:30] [#] and Ra3 should not be overlooked} Rd8 {[%emt 0:7:14]} 17. Nd6+ {[%emt 0:0:36]} Kf8 {[%emt 0:0:12]} 18. Qd2 {[%emt 0:0:11]} Qa1+ {[%emt 0:3:15] The position is equal.} 19. Rc1 {[%emt 0:0:8]} Qa4 $146 {[%emt 0:0:21]} ({Predecessor:} 19... Qa5 20. Qxa5 Nxa5 21. e5 f6 22. f4 fxe5 23. fxe5 Ke7 24. Bb5 Bd7 25. Rc7 Rhf8 {1-0 Moiseenko,A (2568)-Citak,S (2308) SRB-chT 1st League CS 2025 (10.1)} )20. Be2 {[%emt 0:1:20]} f6 {[%emt 0:21:4]} 21. f4 {[%emt 0:1:9]} Ke7 {[%emt 0:12:21] Inhibits e5.} 22. e5 {[%emt 0:0:37]} Qd4 {[%emt 0:7:33]} 23. Qxd4 {[%emt 0:10:59]} Nxd4 {[%emt 0:0:1]} 24. Nxb7 {[%emt 0:34:54]} Rc8 {[%emt 0:1:7]} 25. Nc5 {[%emt 0:2:42]} fxe5 {[%emt 0:1:33]} 26. fxe5 {[%emt 0:3:57]} Rc6 {[%emt 0:6:31]} 27. Kf2 {[%emt 0:4:53]} Nxe2 {[%emt 0:7:0]} 28. Kxe2 {[%emt 0:0:7]} Rhc8 {[%emt 0:3:41]} 29. Nd3 {[%emt 0:2:7]} (29. b4 a5 30. Ra1 axb4 31. Ra7+ R8c7 32. Rxc7+ Rxc7 )Rc2+ {[%emt 0:3:30]} 30. Rxc2 {[%emt 0:2:39]} Rxc2+ $11 {[%emt 0:0:1][%mdl 4096] Endgame KRB-KRN. White is a pawn up.} 31. Ke3 {[%emt 0:0:7]} Bc4 {[%emt 0:5:52]} 32. g3 {[%emt 0:3:0]} Bxd3 {[%emt 0:4:13]} 33. Kxd3 {[%emt 0:0:6]} Rxb2 {[%emt 0:0:2] KR-KR} 34. Ra1 {[%emt 0:0:6]} Ke6 {[%emt 0:0:31]} 35. Rxa7 {[%emt 0:0:7]} Kxe5 {[%emt 0:0:13]} 36. Rxg7 {[%emt 0:0:7]} Rxh2 {[%emt 0:0:4]} 37. Ke3 {[%emt 0:0:7]} Kf6 {[%emt 0:0:5]} 38. Ra7 {[%emt 0:0:6]} Rh1 {[%emt 0:0:7]} 39. Kf3 {[%emt 0:0:5]} Kg6 {[%emt 0:0:6]} 40. Ra6+ {[%emt 0:0:6]} Kg7 {[%emt 0:0:4] An interesting draw.   Weighted Error Value: White=0.02 (flawless) /Black=0.01 (flawless)   OK:         	White=7     	Black=6} 1/2-1/2

[Event "FIDE Women Candidates 2026"]
[White "Goryachkina,Aleksandra"]
[Black "Divya Deshmukh"]
[Site "Agios Georgios Pegeia"]
[Round "3.1"]
[Annotator "TA"]
[Result "1/2-1/2"]
[Date "2026.03.31"]
[WhiteElo "2534"]
[BlackElo "2497"]
[PlyCount "161"]
[TimeControl "60"]

{[%evp 10,161,16,23,25,-5,36,31,37,26,44,46,23,27,32,31,42,48,46,43,72,66,78,78,78,78,78,78,78,78,114,72,78,78,78,78,78,79,78,78,78,78,78,79,80,85,78,78,78,78,85,57,57,57,57,57,57,62,57,50,50,50,57,50,57,56,80,57,57,57,50,50,58,50,137,138,145,138,138,138,130,130,130,136,136,136,349,349,349,243,318,298,289,253,234,245,229,184,360,360,339,341,365,364,358,358,322,218,227,234,234,234,428,62,62,62,62,62,62,0,77,0,0,0,0,0,0,0,0,0,0,0,0,0,0,0,0,0,0,0,0,0,0,0,0,0,0,0,0,0,0,0,0,0]} 1. e4 {[%emt 0:0:7]} c5 {[%emt 0:0:5]} 2. Nf3 {[%emt 0:0:9]} Nc6 {[%emt 0:0:3]} 3. Bb5 {[%emt 0:0:25]} g6 {[%emt 0:0:5]} 4. Bxc6 {[%emt 0:1:2]} bxc6 {[%emt 0:0:9]} 5. O-O {[%emt 0:0:43]} Bg7 {[%emt 0:0:10]} 6. Re1 {[%emt 0:0:19]} Qc7 {[%emt 0:0:49] B31: Sicilian: 2...Nc6 3 Bb5 g6.} 7. d3 {[%emt 0:2:1] 7.h3 is becoming the main line.} d6 {[%emt 0:0:50] [#]} 8. e5 $1 {[%emt 0:3:52]} dxe5 {[%emt 0:1:28][%cal Oc5c4] White is slightly better.} 9. Na3 {[%emt 0:1:32]} Nf6 {[%emt 0:0:37][%cal Bg8f6,Bf6d5,Bd5e3][%mdl 32]} 10. Nxe5 {[%emt 0:1:59]} Nd5 {[%emt 0:0:9] Wards off Bf4} 11. Nac4 {[%emt 0:0:57]} O-O {[%emt 0:0:24]} 12. Qe2 {[%emt 0:6:20]} f6 $146 {[%emt 0:16:44]} ({Predecessor:} 12... Ba6 13. Ng4 Rfe8 14. Bh6 Bh8 15. Bd2 e6 16. Qf3 f5 17. Nge5 Bxc4 18. Nxc4 e5 {½-½ Moussard,J (2670)-Cornette,M (2551) FRA-ch 95th Albi 2022 (3.4)} )13. Nf3 {[%emt 0:0:51] Excellent horsemanship.} e5 {[%emt 0:1:56]} 14. Be3 {[%emt 0:3:47]} Bg4 {[%emt 0:15:20]} 15. h3 {[%emt 0:6:41]} Nxe3 {[%emt 0:2:27]} 16. Qxe3 {[%emt 0:0:43]} Bxf3 {[%emt 0:0:9]} 17. Qxf3 {[%emt 0:0:2]} Rad8 {[%emt 0:2:56]} 18. Re2 {[%emt 0:1:25]} h5 {[%emt 0:6:55]} 19. Rae1 {[%emt 0:1:16]} Kh7 {[%emt 0:1:34]} 20. h4 {[%emt 0:9:16]} Rd5 {[%emt 0:12:21]} 21. g3 {[%emt 0:1:31]} Rf7 {[%emt 0:1:0]} 22. Qg2 {[%emt 0:1:27] White is more active.} Rd8 {[%emt 0:1:10]} 23. b3 {[%emt 0:6:40]} Rd5 {[%emt 0:2:11]} 24. Qf3 {[%emt 0:4:54]} Rf8 {[%emt 0:1:4]} 25. Re3 {[%emt 0:5:24]} Bh6 {[%emt 0:5:6] [#]} 26. Re4 {[%emt 0:0:45][%csl Oc4] Strong Square White (c4)} Bg7 {[%emt 0:1:37]} 27. Qg2 {[%emt 0:0:41]} Rf7 {[%emt 0:1:14]} 28. Kh1 {[%emt 0:5:1]} Rd4 {[%emt 0:6:19]} 29. a4 {[%emt 0:2:15]} Bf8 {[%emt 0:1:44]} 30. Nd2 {[%emt 0:1:6]} Bh6 {[%emt 0:2:19]} 31. Nf3 {[%emt 0:0:48]} Rxe4 {[%emt 0:0:5]} 32. Rxe4 {[%emt 0:0:13]} Qd7 {[%emt 0:0:27]} 33. Kg1 {[%emt 0:8:58]} Qd5 {[%emt 0:1:23]} 34. Rc4 {[%emt 0:1:56]} Rb7 {[%emt 0:1:23]} 35. Nh2 {[%emt 0:2:40]} Qd6 {[%emt 0:1:53]} 36. Qe4 {[%emt 0:2:15]} Bf8 {[%emt 0:4:17]} 37. Qe3 {[%emt 0:2:57]} Rd7 {[%emt 0:4:3]} 38. Nf3 {[%emt 0:3:26]} Qd5 {[%emt 0:0:20]} 39. Kh2 {[%emt 0:2:25]} Bh6 {[%emt 0:4:33]} 40. Qe2 {[%emt 0:0:43]} (40. Qxc5 $2 Qxf3 41. Kg1 Kg7 42. Qxc6 Qxc6 43. Rxc6 a5 $19 )Rd8 {[%emt 0:2:18]} 41. Nd2 {[%emt 0:39:10]} Bxd2 {[%emt 0:10:48]} (41... f5 $1 $14 )42. Qxd2 $14 {[%emt 0:0:0][%mdl 4096] Endgame KQR-KQR} e4 {[%emt 0:0:5]} 43. Qa5 {[%emt 0:0:0]} (43. Rxe4 $2 Qxe4 44. Qa5 Qe7 $19 )exd3 {[%emt 0:9:42]} 44. cxd3 {[%emt 0:0:0]} (44. Qxc5 $2 {loses.} Qxc5 45. Rxc5 d2 $19 )(44. Rxc5 $2 Qd4 45. Qc7+ (45. Qxa7+ $2 Kh6 $19 )Rd7 $19 )(44. Qxa7+ $2 Rd7 $19 )Rd7 {[%emt 0:3:6]} 45. Qxc5 {[%emt 0:0:0]} Qxc5 {[%emt 0:3:8]} 46. Rxc5 {[%emt 0:0:0]} Rxd3 {[%emt 0:0:40]} 47. Rxc6 $16 {[%emt 0:0:0] KR-KR. White is a pawn up.} f5 {[%emt 0:3:39]} (47... a5 $16 )48. Rc7+ $18 {[%emt 0:0:0]} Kh6 {[%emt 0:0:7]} 49. Rb7 {[%emt 0:0:0]} a5 {[%emt 0:0:4]} 50. Kg2 {[%emt 0:0:0]} Rc3 {[%emt 0:0:29]} 51. Kf1 {[%emt 0:0:0]} Rc1+ {[%emt 0:0:16]} 52. Ke2 {[%emt 0:0:0]} Rc3 {[%emt 0:1:32]} 53. f3 {[%emt 0:0:0]} Rc2+ $2 {[%emt 0:0:15]} (53... Rc6 54. Ke3 g5 )54. Ke3 {[%emt 0:0:0]} Rc3+ {[%emt 0:0:13]} 55. Kf4 {[%emt 0:0:0]} Rd3 {[%emt 0:1:7]} 56. Rb5 {[%emt 0:0:0]} Rc3 {[%emt 0:0:14]} 57. Rxa5 {[%emt 0:2:50]} Rxb3 {[%emt 0:0:2]} 58. Ra8 {[%emt 0:0:14]} Rb4+ {[%emt 0:2:49]} 59. Ke5 {[%emt 0:0:7] aiming for f4.} Rb3 {[%emt 0:0:2]} 60. Kf6 {[%emt 0:1:21]} Kh7 {[%emt 0:0:2] Wards off Rh8+} (60... Rb6+ 61. Kf7 Rb7+ 62. Ke6 Rb6+ 63. Kd5 Rb3 )61. Ra7+ $2 {[%emt 0:3:56]} ({White should play} 61. Kg5 $18 )Kh6 $14 {[%emt 0:0:1][%cal Of5f4]} 62. Kf7 {[%emt 0:1:35]} Kh7 {[%emt 0:1:45]} 63. Kf8+ {[%emt 0:2:30]} Kh8 {[%emt 0:0:2]} 64. Ra6 {[%emt 0:0:14]} (64. f4 $14 Rxg3 65. Kf7 )Kh7 {[%emt 0:0:12]} (64... Rxf3 $11 65. Rxg6 Kh7 )65. Kf7 {[%emt 0:0:50]} (65. f4 $16 Rxg3 66. Ra7+ Kh8 67. Kf7 )Rxf3 $11 {[%emt 0:0:21] The position is equal.} 66. Rxg6 {[%emt 0:0:12]} f4 {[%emt 0:0:1]} 67. Rf6 {[%emt 0:0:52]} Rxg3 {[%emt 0:0:11]} 68. Rxf4 {[%emt 0:0:29]} Rg4 {[%emt 0:0:57]} 69. Rf5 {[%emt 0:0:25][%cal Rf5h5]} Rxh4 {[%emt 0:0:10]} 70. a5 {[%emt 0:0:6]} Kh6 {[%emt 0:0:15]} 71. Kf6 {[%emt 0:0:43]} Ra4 {[%emt 0:1:4]} 72. Rb5 {[%emt 0:0:28]} h4 {[%emt 0:0:23]} 73. Kf5 {[%emt 0:0:25]} h3 {[%emt 0:0:10]} 74. Rb3 {[%emt 0:0:36]} Rxa5+ {[%emt 0:0:53]} (74... h2 $5 75. Rh3+ $8 Kg7 $11 )75. Kg4 {[%emt 0:0:5]} h2 {[%emt 0:0:18]} 76. Rh3+ {[%emt 0:0:3]} Kg6 {[%emt 0:0:3]} 77. Rxh2 {[%emt 0:0:5]} Ra4+ {[%emt 0:0:1]} 78. Kg3 {[%emt 0:0:6]} Ra3+ {[%emt 0:0:1]} 79. Kg2 {[%emt 0:0:1]} Ra2+ {[%emt 0:0:4]} 80. Kg3 {[%emt 0:0:3]} Rxh2 {[%emt 0:0:4]} 81. Kxh2 {[%emt 0:0:3] Black escapes into a draw.   Weighted Error Value: White=0.08 (flawless) /Black=0.18 (very precise)   Loses game:     	---       	Black=1      Missed win:     	White=1     	---        Mistake:       	White=2     	Black=4      Inaccurate:     	White=5     	Black=4      OK:         	White=20    	Black=18     Best:        	---       	Black=4} 1/2-1/2

[Event "FIDE Women Candidates 2026"]
[White "Zhu,Jiner"]
[Black "Assaubayeva,Bibisara"]
[Site "Agios Georgios Pegeia"]
[Round "3.3"]
[Annotator "TA"]
[Result "0-1"]
[Date "2026.03.31"]
[WhiteElo "2578"]
[BlackElo "2516"]
[PlyCount "86"]
[TimeControl "60"]

{[%evp 12,86,34,46,36,27,25,15,31,55,44,0,35,0,0,-8,0,0,94,92,79,51,76,58,79,96,91,55,50,12,12,0,0,-87,-72,-93,-93,-93,-97,-85,-62,-65,-60,-54,-65,-60,-63,-220,-218,-710,-707,-1077,-1071,-964,-424,-887,854,-437,-446,-446,-446,-446,-446,-419,-412,-1272,-1202,-1306,-1224,-1127,-1066,-1379,-1271,-1766,-1928,-1485,-1472]} 1. e4 {[%emt 0:0:4]} c5 {[%emt 0:0:12]} 2. Nf3 {[%emt 0:0:8]} Nc6 {[%emt 0:0:12]} 3. Bb5 {[%emt 0:0:16]} d6 {[%emt 0:0:10]} 4. O-O {[%emt 0:0:27]} Bd7 {[%emt 0:0:13]} 5. Re1 {[%emt 0:0:11]} Nf6 {[%emt 0:0:12]} 6. h3 {[%emt 0:0:12]} a6 {[%emt 0:0:11]} 7. Bf1 {[%emt 0:0:7]} Rg8 {[%emt 0:0:7] B51: Sicilian: Moscow Variation (3 Bb5+) without 3...Bd7.} 8. d3 {[%emt 0:8:41]} h6 {[%emt 0:0:11]} 9. b4 {[%emt 0:0:6]} cxb4 {[%emt 0:5:16][%cal Bc5b4,Bb4b3][%mdl 32] The position is equal.} 10. a3 {[%emt 0:1:5]} b3 {[%emt 0:0:6]} 11. Nbd2 $146 {[%emt 0:0:10]} ({Predecessor:} 11. c4 g5 12. Qxb3 g4 13. hxg4 Nxg4 14. d4 Qa5 15. Nc3 Bg7 16. e5 dxe5 17. Bd2 {0-1 Tari,A (2642)-Abdusattorov,N (2731) Norway Chess 11th 2023 (2)} )g5 {[%emt 0:5:58]} 12. d4 {[%emt 0:1:52]} g4 {[%emt 0:9:21]} 13. hxg4 {[%emt 0:10:6]} Bxg4 {[%emt 0:11:15]} 14. Bb2 {[%emt 0:0:45] White sacrificed a pawn} d5 {[%emt 0:23:11]} (14... bxc2 $11 15. Qxc2 d5 )15. c4 $16 {[%emt 0:11:56]} (15. cxb3 $6 e6 $11 )dxe4 {[%emt 0:2:3]} 16. Nxe4 {[%emt 0:1:18]} Nxe4 {[%emt 0:0:44]} 17. Rxe4 {[%emt 0:0:7] A sharp opening} Bf5 {[%emt 0:1:16]} 18. Re3 {[%emt 0:0:43][%mdl 1024] White has strong compensation.} Bc2 {[%emt 0:0:42]} 19. Qc1 {[%emt 0:6:49]} Rc8 {[%emt 0:2:27]} 20. d5 {[%emt 0:11:3]} Na5 {[%emt 0:1:18]} 21. Nd2 {[%emt 0:0:52]} ({Don't blunder} 21. Ne5 $2 f6 22. Nd3 Nxc4 $19 (22... Rxc4 23. Qe1 $17 ))Rg4 {[%emt 0:7:16]} 22. Be5 {[%emt 0:15:47]} (22. Bf6 $11 {keeps the balance.} )h5 {[%emt 0:3:59]} 23. Qb2 {[%emt 0:4:42]} Bh6 {[%emt 0:2:35]} 24. Rae1 {[%emt 0:0:6]} Bxe3 {[%emt 0:0:35]} 25. Rxe3 {[%emt 0:0:5]} Nxc4 {[%emt 0:4:44]} 26. Nxc4 {[%emt 0:0:18]} Rcxc4 {[%emt 0:0:40]} 27. Bxc4 {[%emt 0:6:0]} Rxc4 {[%emt 0:0:32][%csl Oc2] Strong Square Black (c2)} 28. d6 {[%emt 0:0:34]} e6 {[%emt 0:1:2]} 29. Bh2 $2 {[%emt 0:7:46]} (29. Bg3 $15 )Qg5 $19 {[%emt 0:2:50]} 30. Be5 $2 {[%emt 0:9:59]} (30. Qh8+ Kd7 31. Qf8 )Be4 {[%emt 0:8:24][%csl Ge4][%cal Rg5g2] [#]} 31. f4 {[%emt 0:2:19]} Rc1+ {[%emt 0:0:23]} 32. Kh2 {[%emt 0:0:28]} Qh4+ {[%emt 0:0:34]} 33. Rh3 {[%emt 0:0:5]} Rh1+ {[%emt 0:2:51]} 34. Kxh1 {[%emt 0:0:4]} Qxh3+ $18 {[%emt 0:0:3][%mdl 4096] Endgame KQB-KQB. Black is two pawns up.} 35. Kg1 {[%emt 0:0:3]} Qe3+ {[%emt 0:0:5]} 36. Qf2 {[%emt 0:0:29]} Qxf2+ {[%emt 0:0:59]} 37. Kxf2 $19 {[%emt 0:0:5] KB-KB. Black is two pawns up.} h4 {[%emt 0:0:16]} 38. g4 {[%emt 0:3:2]} (38. a4 $142 )b5 {[%emt 0:1:9] Black is clearly winning.} 39. Kg1 {[%emt 0:0:26]} h3 {[%emt 0:0:26]} 40. Kh2 {[%emt 0:0:6]} Bg2 {[%emt 0:0:4]} 41. Kg3 {[%emt 0:30:40]} a5 {[%emt 0:32:56]} 42. Kh2 {[%emt 0:0:37]} Kd7 {[%emt 0:0:18]} 43. Kg3 {[%emt 0:0:10]} a4 {[%emt 0:0:16] Weighted Error Value: White=0.99/Black=0.37   Mistake:       	White=4     	Black=1      Inaccurate:     	White=6     	Black=1      OK:         	White=3     	Black=3      Best:        	White=1     	Black=1} 0-1

[Event "FIDE Women Candidates 2026"]
[White "Tan,Zhongyi"]
[Black "Lagno,Kateryna"]
[Site "Agios Georgios Pegeia"]
[Round "3.4"]
[Annotator "TA"]
[Result "0-1"]
[Date "2026.03.31"]
[WhiteElo "2535"]
[BlackElo "2508"]
[PlyCount "108"]
[TimeControl "60"]

{[%evp 13,107,21,28,3,37,18,27,13,12,14,19,12,20,7,6,13,6,11,102,95,85,53,65,54,63,67,55,-180,-182,-183,-190,-194,-191,-186,-199,-200,-200,-191,-188,-177,-159,-153,-166,-156,-110,-228,-89,-367,-195,-176,-63,-300,-190,-279,-221,-249,-65,-99,221,210,197,197,198,209,293,290,367,379,714,68,66,-702,-612,-737,-788,-775,-750,-783,-788,-788,-786,-751,-734,-823,-813,-975,-974,-993,-986,-987,-987,-983,-972,-938,-855,-1038]} 1. e4 {[%emt 0:0:5]} e5 {[%emt 0:0:10]} 2. Nf3 {[%emt 0:0:6]} Nc6 {[%emt 0:0:5]} 3. Bc4 {[%emt 0:0:5]} Bc5 {[%emt 0:0:24]} 4. c3 {[%emt 0:0:22]} d6 {[%emt 0:0:17]} 5. d4 {[%emt 0:0:36]} exd4 {[%emt 0:0:16]} 6. cxd4 {[%emt 0:0:5]} Bb6 {[%emt 0:0:10]} 7. Nc3 {[%emt 0:1:34]} Nf6 {[%emt 0:0:40] 7...Nf6 scores better than 7...Bg4.} 8. Qd3 {[%emt 0:1:23] C53: Giuoco Piano sidelines.} O-O {[%emt 0:16:9]} 9. Bg5 $146 {[%emt 0:4:4]} ({Predecessor:} 9. Be3 Ng4 10. a3 Nxe3 11. fxe3 Bg4 12. O-O-O Kh8 13. h3 Bxf3 14. gxf3 Qf6 15. Nd5 Qxf3 16. Nxb6 cxb6 {1-0 Douglas,C (1600)-Knox,A (1272) ENG NC/CT329878 email 2017} )h6 {[%emt 0:1:11]} 10. Bh4 {[%emt 0:6:4] White has an edge.} Nb4 {[%emt 0:19:17]} 11. Qd2 {[%emt 0:5:50] [#]} d5 {[%emt 0:15:6]} 12. exd5 {[%emt 0:2:47]} Re8+ {[%emt 0:10:19] Black sacrificed a pawn} 13. Kf1 {[%emt 0:0:6] Hoping for a3.} (13. Ne5 $2 Bxd4 14. Ne2 Bxe5 $19 )c6 {[%emt 0:6:5]} 14. dxc6 {[%emt 0:0:11]} bxc6 {[%emt 0:0:3]} 15. Rd1 {[%emt 0:0:16]} Ba6 {[%emt 0:0:51]} (15... Be6 $11 16. b3 Bg4 )16. Bxa6 $16 {[%emt 0:1:9]} Nxa6 {[%emt 0:0:3][%cal Bb4a6,Ba6c7,Bc7d5][%mdl 32]} 17. g4 {[%emt 0:10:57][%cal Bg2g4,Bg4g5][%mdl 32]} Nc7 {[%emt 0:4:34]} 18. Rg1 {[%emt 0:2:0]} Ncd5 {[%emt 0:8:25]} 19. g5 {[%emt 0:12:46]} Nh5 {[%emt 0:9:7]} 20. Rg4 $2 {[%emt 0:5:8]} (20. gxh6 $14 {stays ahead.} Qd7 21. Nxd5 Qh3+ 22. Rg2 cxd5 23. Bg3 )Qd7 $19 {[%emt 0:0:36]} 21. h3 {[%emt 0:0:13]} (21. Ne5 Rxe5 22. h3 Re6 23. gxh6 g6 )Qf5 {[%emt 0:0:20]} 22. Qd3 {[%emt 0:19:58]} Ne3+ {[%emt 0:0:11]} 23. fxe3 {[%emt 0:0:4]} Qxf3+ {[%emt 0:0:3] Black attacks} 24. Bf2 {[%emt 0:0:8]} Qxh3+ {[%emt 0:1:59]} 25. Rg2 {[%emt 0:0:4]} hxg5 {[%emt 0:1:25]} 26. Kg1 {[%emt 0:4:2]} Bc7 {[%emt 0:0:16]} 27. Ne4 {[%emt 0:2:54]} f6 {[%emt 0:0:30] Black is more active.} 28. Rc1 {[%emt 0:1:3]} Kh8 {[%emt 0:2:29] Chess con chili.} ({Black should play} 28... Rab8 29. b3 Kh8 )29. Nc5 {[%emt 0:5:27]} (29. Qb1 $17 )Rad8 {[%emt 0:1:31]} (29... g4 $19 {and Black stays clearly on top.} 30. Rd1 g3 )30. Qb3 $2 {[%emt 0:1:39][%mdl 8192]} (30. Rc3 $17 )Re7 {[%emt 0:1:41]} (30... g4 $142 31. Qf7 Bd6 )31. Na6 {[%emt 0:0:36]} Qf3 {[%emt 0:0:53]} (31... Bb6 $19 {...g6 would now be deadly.} 32. Rh2 Qg4+ 33. Kf1 g6 )32. Nb4 $2 {[%emt 0:3:43]} (32. Nxc7 $15 Rxc7 33. Qe6 )Rd6 {[%emt 0:0:42]} 33. d5 {[%emt 0:2:18]} (33. Rf1 $142 )cxd5 {[%emt 0:0:24]} 34. Nc6 {[%emt 0:0:7]} Rf7 {[%emt 0:0:35]} (34... Rxc6 $19 35. Rxc6 Bb6 36. Rxb6 axb6 37. Qxb6 Qd1+ 38. Kh2 Re4 39. Qd8+ Kh7 )35. Nd4 $15 {[%emt 0:0:21]} Qe4 {[%emt 0:0:1][%mdl 8192]} (35... Qh3 $17 {stays on course.} 36. Rh2 Qg4+ 37. Rg2 Qd7 )36. Rxc7 $18 {[%emt 0:0:56]} Rxc7 {[%emt 0:0:47]} (36... Qb1+ $6 37. Kh2 Rxc7 38. Qb8+ Kh7 39. Qxc7 )37. Qb8+ {[%emt 0:0:4]} Kh7 {[%emt 0:0:2]} 38. Qxc7 {[%emt 0:0:6]} Rb6 {[%emt 0:0:6]} (38... Ra6 $142 39. Qf7 Qb1+ 40. Kh2 Kh6 )39. b3 {[%emt 0:3:27]} ({Stronger than} 39. Qxa7 Rxb2 40. Qd7 Kg6 $11 )Qb1+ {[%emt 0:0:33]} 40. Kh2 {[%emt 0:0:5]} f5 $2 {[%emt 0:0:15]} (40... Kg8 41. a4 (41. Qxa7 $2 Nf4 $18 )Qg6 )41. Qf7 $2 {[%emt 0:33:57]} ({Better is} 41. Rxg5 $18 Rh6 42. Nxf5 )Rf6 $14 {[%emt 0:6:6]} 42. Qxd5 {[%emt 0:0:0][%mdl 8192]} (42. Qxh5+ $14 Rh6 43. Rxg5 )Nf4 $19 {[%emt 0:1:49] Black is clearly winning.} 43. exf4 {[%emt 0:0:0]} Rh6+ {[%emt 0:0:11]} 44. Kg3 {[%emt 0:3:0]} Qd3+ {[%emt 0:1:4]} 45. Qf3 {[%emt 0:0:56]} g4 {[%emt 0:0:16][%csl Gg4][%cal Rh6h3] [#]} 46. Rh2 {[%emt 0:0:6]} gxf3 {[%emt 0:0:43]} 47. Rxh6+ {[%emt 0:0:4]} gxh6 {[%emt 0:1:12]} 48. Nxf3 {[%emt 0:0:13]} a6 {[%emt 0:0:22]} 49. Bd4 {[%emt 0:2:20]} Qc2 {[%emt 0:0:38]} 50. b4 {[%emt 0:0:15]} Qxa2 {[%emt 0:0:18]} 51. Bc3 {[%emt 0:0:5]} Qb3 {[%emt 0:0:13]} 52. Be1 {[%emt 0:0:5]} Kg6 {[%emt 0:0:45]} 53. Kg2 {[%emt 0:0:8]} Kf7 {[%emt 0:0:27]} 54. Nh4 {[%emt 0:1:11]} Qe3 {[%emt 0:0:30][%csl LRe1,LRf4] Weighted Error Value: White=0.61/Black=0.64   Loses game:     	White=3     	Black=1      Missed win:     	White=1     	Black=1      Mistake:       	White=2     	Black=7      Inaccurate:     	White=2     	Black=2      OK:         	White=1     	Black=3      Best:        	---       	Black=1} 0-1

[Event "FIDE Women Candidates 2026"]
[White "Muzychuk,Anna"]
[Black "Lagno,Kateryna"]
[Site "Agios Georgios Pegeia"]
[Round "4.1"]
[Annotator "TA"]
[Result "1-0"]
[Date "2026.04.01"]
[WhiteElo "2522"]
[BlackElo "2508"]
[PlyCount "63"]
[TimeControl "60"]

{[%evp 12,62,20,23,31,22,30,4,38,30,77,60,58,69,65,52,58,58,81,81,81,76,87,73,92,11,0,0,4,0,0,0,0,9,0,7,0,0,22,16,16,0,0,0,16,20,226,215,453,442,648,580,29986]} 1. e4 {[%emt 0:0:3]} e5 {[%emt 0:0:5]} 2. Nf3 {[%emt 0:0:5]} Nc6 {[%emt 0:0:5]} 3. Bb5 {[%emt 0:0:12]} a6 {[%emt 0:0:14]} 4. Ba4 {[%emt 0:0:7]} Nf6 {[%emt 0:0:6]} 5. O-O {[%emt 0:0:11]} Be7 {[%emt 0:0:14]} 6. Bxc6 {[%emt 0:0:24]} dxc6 {[%emt 0:0:7]} 7. d3 {[%emt 0:0:5]} Qd6 {[%emt 0:1:43] C85: Closed Ruy Lopez: Deferred Exchange Variation.} 8. a4 {[%emt 0:0:22]} Be6 {[%emt 0:13:6]} 9. Na3 $146 {[%emt 0:0:11]} ({Predecessor:} 9. b3 Nd7 10. Ng5 a5 11. Ba3 c5 12. Nxe6 Qxe6 13. Nc3 c6 14. Ne2 O-O 15. Bb2 {½-½ Grischuk,A (2686)-Sapenov,D (2462) Almaty Shimbulak Blitz 2025 (10)} )h6 {[%emt 0:5:44] The position is equal.} 10. Nd2 {[%emt 0:10:31]} O-O-O {[%emt 0:21:21]} (10... Qd8 $11 {deserves consideration.} )11. Ndc4 $16 {[%emt 0:1:11]} Bxc4 {[%emt 0:0:25]} 12. Nxc4 {[%emt 0:0:4]} Qe6 {[%emt 0:0:2]} 13. Qe2 {[%emt 0:0:45]} Nd7 {[%emt 0:0:31]} 14. Bd2 {[%emt 0:5:59]} b6 {[%emt 0:7:7]} 15. b4 {[%emt 0:8:25] White is more active.} Kb7 {[%emt 0:0:10]} 16. Rfb1 {[%emt 0:6:45]} Ra8 {[%emt 0:0:20]} 17. Qe1 {[%emt 0:8:31]} h5 {[%emt 0:17:2]} 18. b5 {[%emt 0:12:55]} (18. Qc1 $16 )cxb5 $11 {[%emt 0:0:14]} 19. axb5 {[%emt 0:0:7]} a5 {[%emt 0:4:21]} 20. Bxa5 {[%emt 0:10:4]} bxa5 {[%emt 0:1:39]} 21. Nxa5+ {[%emt 0:0:6]} Kc8 {[%emt 0:1:23]} 22. Nc6 {[%emt 0:2:52]} Rxa1 {[%emt 0:1:30]} 23. Rxa1 {[%emt 0:0:6]} Nb6 {[%emt 0:0:8] Prevents Ra8+} 24. Qe3 {[%emt 0:4:37]} Bd6 {[%emt 0:9:9]} 25. c4 {[%emt 0:12:49][%mdl 1024] White has compensation.} Qh6 {[%emt 0:0:4]} 26. Qh3+ {[%emt 0:2:29]} Qe6 {[%emt 0:0:5] [#] aiming for ...Qxh3.} 27. Qe3 $36 {[%emt 0:0:23][%mdl 2048] White has some pressure.} Qh6 {[%emt 0:0:4]} 28. d4 {[%emt 0:5:32]} exd4 $2 {[%emt 0:12:22] Loses the game.} (28... Qxe3 $11 {and Black is okay.} 29. fxe3 exd4 (29... Nxc4 $2 {is the wrong capture.} 30. Ra8+ Kd7 31. Rxh8 $18 )30. exd4 Re8 )29. Qxd4 $18 {[%emt 0:0:5]} Kb7 $2 {[%emt 0:0:11]} (29... Re8 {keeps fighting.} )30. c5 {[%emt 0:3:5]} Ra8 {[%emt 0:0:16]} (30... Bxc5 $142 31. Qxc5 Qd6 32. Qxd6 cxd6 33. Ra7+ Kc8 34. Rxf7 g5 )31. cxd6 {[%emt 0:3:6]} Qxd6 {[%emt 0:2:18]} 32. Rxa8 {[%emt 0:0:41] Weighted Error Value: White=0.11 (very precise) /Black=0.72   Loses game:     	---       	Black=1      Mistake:       	White=1     	Black=3      Inaccurate:     	White=1     	Black=2      OK:         	White=4     	Black=1      Best:        	---       	Black=2} 1-0